bitfinex/quotes_SOLUSD_20250414
["timestamp","ask_amount","ask_price","bid_price","bid_amount"]
[1744643600182,52.86972058,130.65,130.56,45.21572058]
[1744643600380,52.86972058,130.65,130.6,45.21572058]
[1744643600684,45.21572058,130.68,130.63,45.21572058]
[1744643601191,45.21572058,130.66,130.61,45.21572058]
[1744643601565,45.21572058,130.67,130.59,7.6574]
[1744643601765,45.21572058,130.66,130.61,45.21572058]
[1744643602086,45.21572058,130.64,130.59,45.21572058]
[1744643602288,45.21572058,130.6,130.55,45.21572058]
[1744643602484,45.21572058,130.58,130.51,16.9801]
[1744643602694,45.21572058,130.58,130.53,45.21572058]
[1744643602991,45.21572058,130.59,130.51,18.0611]
[1744643603183,45.21572058,130.59,130.54,45.21572058]
[1744643603391,7.6564,130.61,130.56,45.21572058]
[1744643603568,91.64,130.65,130.52,18.64964886]
[1744643603771,45.21572058,130.63,130.52,18.64964886]
[1744643603971,45.21572058,130.63,130.58,45.21572058]
[1744643604471,45.21572058,130.61,130.51,37.2167]
[1744643604674,45.21572058,130.58,130.51,1.6591]
[1744643604885,45.21572058,130.58,130.53,45.21572058]
[1744643605087,52.87322058,130.59,130.51,9.3212]
[1744643605389,7.6575,130.59,130.55,45.21572058]
[1744643605607,52.87322058,130.59,130.51,9.3212]
[1744643606096,52.87202058,130.61,130.56,45.21572058]
[1744643606320,52.87202058,130.61,130.51,28.4768]
[1744643606321,7.6563,130.61,130.51,28.4768]
[1744643606596,52.87202058,130.61,130.55,45.21572058]
[1744643607267,52.87202058,130.61,130.51,1.6591]
[1744643607268,0.28432314,130.6,130.51,1.6591]
[1744643607495,45.21572058,130.59,130.53,45.21572058]
[1744643607986,45.21572058,130.58,130.53,45.21572058]
[1744643608195,0.28432314,130.6,130.53,45.21572058]
[1744643608387,7.6581,130.58,130.53,45.21572058]
[1744643608690,7.6581,130.58,130.52,7.6613]
[1744643608880,7.6581,130.58,130.53,45.21572058]
[1744643609284,82.9,130.62,130.56,45.21572058]
[1744643609501,90.556,130.62,130.52,7.6613]
[1744643609679,45.21572058,130.61,130.56,45.21572058]
[1744643609886,19.1631,130.67,130.56,45.21572058]
[1744643610078,0.03,130.67,130.56,45.21572058]
[1744643610278,0.03,130.67,130.66,45.21572058]
[1744643610483,0.03,130.67,130.59,7.6575]
[1744643610887,0.03,130.67,130.63,45.21572058]
[1744643611266,0.03,130.67,130.59,7.6575]
[1744643611473,0.03,130.67,130.62,45.21572058]
[1744643611700,0.03,130.67,130.63,45.21572058]
[1744643612075,45.24572058,130.67,130.62,45.21572058]
[1744643612397,7.6828,130.67,130.58,26.803]
[1744643612697,7.6828,130.67,130.62,45.21572058]
[1744643612890,7.6828,130.67,130.58,26.803]
[1744643612891,0.03,130.67,130.63,45.21572058]
[1744643613275,0.03,130.67,130.62,45.21572058]
[1744643613475,0.03,130.67,130.63,45.21572058]
[1744643613673,45.21572058,130.66,130.58,7.6581]
[1744643613876,45.21572058,130.66,130.61,45.21572058]
[1744643614295,90.5544,130.65,130.61,45.21572058]
[1744643614682,90.5544,130.65,130.57,6.5209]
[1744643614683,135.77012058,130.65,130.6,45.21572058]
[1744643614892,135.77012058,130.65,130.57,6.5209]
[1744643614893,82.9,130.65,130.61,45.21572058]
[1744643615101,82.9,130.65,130.63,45.21572058]
[1744643615308,82.9,130.65,130.64,45.21572058]
[1744643615481,7.683,130.67,130.64,45.21572058]
[1744643616289,0.03,130.67,130.64,45.21572058]
[1744643616516,0.03,130.67,130.61,7.656]
[1744643616686,0.03,130.67,130.63,45.21572058]
[1744643616883,45.24572058,130.67,130.62,45.21572058]
[1744643617486,0.03,130.67,130.63,45.21572058]
[1744643618405,45.24572058,130.67,130.61,45.21572058]
[1744643618702,45.21572058,130.66,130.61,45.21572058]
[1744643618884,45.24572058,130.67,130.61,45.21572058]
[1744643619084,45.21572058,130.66,130.61,45.21572058]
[1744643619281,45.21572058,130.66,130.58,7.6578]
[1744643619484,7.654,130.65,130.61,45.21572058]
[1744643619681,7.654,130.65,130.58,7.6578]
[1744643619986,45.21572058,130.64,130.59,45.21572058]
[1744643620186,45.21572058,130.63,130.57,45.21572058]
[1744643621098,45.21572058,130.64,130.59,45.21572058]
[1744643621404,52.86972058,130.65,130.6,45.21572058]
[1744643621704,45.21572058,130.63,130.54,19.1512]
[1744643621911,45.21572058,130.62,130.57,45.21572058]
[1744643622094,72.00472058,130.65,130.59,45.21572058]
[1744643622501,7.654,130.65,130.61,45.21572058]
[1744643622804,52.86972058,130.65,130.59,45.21572058]
[1744643623203,52.86972058,130.65,130.6,45.21572058]
[1744643623789,82.9,130.66,130.64,45.21572058]
[1744643624104,7.6832,130.67,130.64,45.21572058]
[1744643624601,7.6832,130.67,130.63,45.21572058]
[1744643624980,7.6832,130.67,130.62,45.21572058]
[1744643624981,52.89892058,130.67,130.62,45.21572058]
[1744643625180,52.89892058,130.67,130.59,45.21572058]
[1744643625181,45.21572058,130.65,130.59,45.21572058]
[1744643625411,45.21572058,130.65,130.6,45.21572058]
[1744643625718,7.6546,130.64,130.58,7.6579]
[1744643625883,7.6546,130.64,130.57,7.6585]
[1744643626081,7.6546,130.64,130.59,45.21572058]
[1744643626300,7.654,130.65,130.61,45.21572058]
[1744643626609,82.93,130.67,130.61,1.5852]
[1744643626902,128.14572058,130.67,130.61,1.5852]
[1744643627093,82.93,130.67,130.63,45.21572058]
[1744643627301,82.93,130.67,130.64,45.21572058]
[1744643627693,82.93,130.67,130.62,7.6552]
[1744643628003,90.5828,130.67,130.62,7.6552]
[1744643628185,90.5828,130.67,130.64,45.21572058]
[1744643628605,45.21572058,130.65,130.57,7.6587]
[1744643628907,45.21572058,130.63,130.57,7.6587]
[1744643629086,128.11572058,130.66,130.61,45.21572058]
[1744643629483,128.11572058,130.66,130.57,7.6587]
[1744643629484,52.87012058,130.65,130.6,45.21572058]
[1744643629804,52.87012058,130.65,130.6,52.87252058]
[1744643630011,135.76942058,130.66,130.6,52.87252058]
[1744643630505,90.5537,130.66,130.6,7.6568]
[1744643630707,135.76942058,130.66,130.6,52.87252058]
[1744643632212,7.6831,130.67,130.63,45.21572058]
[1744643632408,7.6831,130.67,130.66,45.21572058]
[1744643632409,0.03,130.67,130.66,45.21572058]
[1744643632784,0.03,130.67,130.65,45.21572058]
[1744643633221,0.03,130.73,130.66,99.17144116]
[1744643633401,0.03,130.73,130.72,45.21572058]
[1744643633718,0.03,130.77,130.72,109.08109002]
[1744643634012,0.03,130.77,130.71,16.3903]
[1744643634215,0.03,130.77,130.74,45.21572058]
[1744643634589,45.21572058,130.76,130.71,45.21572058]
[1744643634806,0.03,130.77,130.73,45.21572058]
[1744643635015,45.21572058,130.76,130.65,1.5414]
[1744643635188,45.21572058,130.75,130.65,1.5414]
[1744643635384,45.21572058,130.75,130.7,45.21572058]
[1744643636010,0.03,130.77,130.65,1.5414]
[1744643636011,7.6499,130.72,130.65,9.1953]
[1744643636399,7.6499,130.72,130.69,45.21572058]
[1744643637302,7.6493,130.73,130.69,45.21572058]
[1744643637702,71.98832058,130.73,130.68,45.21572058]
[1744643638003,128.11572058,130.72,130.67,45.21572058]
[1744643638414,82.9,130.72,130.68,45.21572058]
[1744643638603,82.9,130.72,130.7,45.21572058]
[1744643639106,82.9,130.72,130.68,45.21572058]
[1744643639423,45.21572058,130.69,130.61,238.7]
[1744643639631,45.21572058,130.69,130.6,9.2732]
[1744643639632,45.21572058,130.67,130.62,45.21572058]
[1744643640210,45.21572058,130.67,130.6,1.6165]
[1744643640413,45.21572058,130.67,130.62,45.21572058]
[1744643640818,45.21572058,130.66,130.61,45.21572058]
[1744643641318,7.654,130.65,130.61,45.21572058]
[1744643641902,7.654,130.65,130.6,46.83222058]
[1744643641903,72.00472058,130.65,130.6,46.83222058]
[1744643642101,7.654,130.65,130.56,63.86536944]
[1744643642419,45.21572058,130.63,130.58,45.21572058]
[1744643642625,7.654,130.65,130.56,45.21572058]
[1744643642816,82.9,130.66,130.64,45.21572058]
[1744643642817,90.5535,130.66,130.64,45.21572058]
[1744643643021,52.86792058,130.68,130.63,45.21572058]
[1744643643318,45.21572058,130.66,130.61,45.21572058]
[1744643643523,45.21572058,130.63,130.55,8.74]
[1744643643698,45.21572058,130.63,130.58,45.21572058]
[1744643643896,7.6505,130.71,130.62,90.43144116]
[1744643644117,7.6505,130.71,130.57,18.933972]
[1744643644118,45.21572058,130.68,130.57,18.64964886]
[1744643644296,45.21572058,130.65,130.6,45.21572058]
[1744643644494,82.9,130.67,130.56,72.02292058]
[1744643644495,128.11572058,130.67,130.62,45.21572058]
[1744643644695,82.9,130.71,130.66,45.21572058]
[1744643644895,82.9,130.71,130.7,45.21572058]
[1744643645123,128.11572058,130.71,130.66,45.21572058]
[1744643645418,82.9,130.71,130.7,45.21572058]
[1744643645819,90.5483,130.75,130.7,45.21572058]
[1744643646024,45.21572058,130.74,130.69,45.21572058]
[1744643646198,135.76402058,130.75,130.7,45.21572058]
[1744643646529,135.76402058,130.75,130.65,7.654]
[1744643646530,7.6477,130.76,130.73,45.21572058]
[1744643646913,7.6477,130.76,130.72,45.21572058]
[1744643647114,7.6477,130.76,130.68,45.21572058]
[1744643647115,7.6477,130.76,130.73,45.21572058]
[1744643647612,8.77,130.77,130.74,45.21572058]
[1744643647814,16.417,130.77,130.73,45.21572058]
[1744643648127,16.417,130.77,130.68,64.34492058]
[1744643648128,8.77,130.77,130.75,45.21572058]
[1744643648326,8.77,130.77,130.72,7.6498]
[1744643648327,0.03,130.77,130.76,45.21572058]
[1744643649697,0.03,130.77,130.76,52.86322058]
[1744643651628,0.03,130.77,130.73,45.21572058]
[1744643651800,45.21572058,130.76,130.71,45.21572058]
[1744643652001,45.21572058,130.73,130.68,1.5569]
[1744643652204,45.21572058,130.73,130.67,7.6525]
[1744643652408,45.21572058,130.73,130.68,45.21572058]
[1744643652618,8.72,130.76,130.69,45.21572058]
[1744643652619,45.21572058,130.74,130.69,45.21572058]
[1744643652829,7.6493,130.73,130.69,45.21572058]
[1744643653128,45.21572058,130.72,130.67,45.21572058]
[1744643653430,52.86502058,130.73,130.68,45.21572058]
[1744643653627,45.21572058,130.72,130.67,45.21572058]
[1744643653825,45.21572058,130.71,130.66,45.21572058]
[1744643654122,45.21572058,130.72,130.66,45.21572058]
[1744643654306,71.98832058,130.73,130.67,45.21572058]
[1744643654502,45.21572058,130.7,130.65,45.21572058]
[1744643654733,45.21572058,130.66,130.59,7.6575]
[1744643655033,45.21572058,130.64,130.59,45.21572058]
[1744643655216,8.72,130.67,130.63,45.21572058]
[1744643655415,53.93572058,130.71,130.62,45.21572058]
[1744643655614,8.72,130.71,130.67,45.21572058]
[1744643655812,52.86692058,130.7,130.65,45.21572058]
[1744643656344,7.6507,130.71,130.66,45.21572058]
[1744643656526,45.21572058,130.7,130.65,45.21572058]
[1744643656832,7.6516,130.69,130.65,45.21572058]
[1744643657028,45.21572058,130.68,130.59,8.72]
[1744643657233,45.21572058,130.68,130.63,45.21572058]
[1744643657548,45.21572058,130.64,130.58,9.171]
[1744643657832,45.21572058,130.63,130.58,45.21572058]
[1744643658210,45.21572058,130.62,130.57,45.21572058]
[1744643658807,52.87162058,130.62,130.57,52.87442058]
[1744643659221,7.6559,130.62,130.57,7.6587]
[1744643659423,7.6559,130.62,130.58,45.21572058]
[1744643660408,7.6559,130.62,130.57,7.6587]
[1744643660708,7.6559,130.62,130.58,45.21572058]
[1744643661316,45.21572058,130.61,130.56,7.6592]
[1744643661513,45.21572058,130.61,130.56,45.21572058]
[1744643661716,45.21572058,130.6,130.55,45.21572058]
[1744643662328,45.21572058,130.61,130.56,45.21572058]
[1744643662533,45.21572058,130.6,130.54,7.7233]
[1744643662740,45.21572058,130.57,130.54,0.063]
[1744643663015,0.28432314,130.61,130.54,0.063]
[1744643663016,45.21572058,130.56,130.54,0.063]
[1744643663236,45.21572058,130.57,130.54,0.063]
[1744643663441,52.87502058,130.56,130.54,0.063]
[1744643663649,45.50004372,130.55,130.54,0.063]
[1744643663824,45.78436686,130.55,130.54,0.063]
[1744643664146,0.28432314,130.53,130.45,45.21572058]
[1744643664320,45.21572058,130.5,130.45,45.21572058]
[1744643664519,45.21572058,130.46,130.4,0.063]
[1744643664841,45.21572058,130.43,130.4,0.063]
[1744643665147,45.21572058,130.44,130.4,0.063]
[1744643665441,45.21572058,130.44,130.4,45.27872058]
[1744643665736,45.21572058,130.45,130.4,45.27872058]
[1744643665918,26.0,130.49,130.43,45.21572058]
[1744643666249,82.9,130.48,130.4,0.063]
[1744643666421,45.21572058,130.44,130.4,0.063]
[1744643666824,45.21572058,130.46,130.41,45.21572058]
[1744643667022,45.21572058,130.45,130.4,45.27872058]
[1744643667238,45.21572058,130.43,130.4,0.063]
[1744643667419,52.88382058,130.41,130.4,0.063]
[1744643667728,45.21572058,130.43,130.4,0.063]
[1744643667930,45.21572058,130.42,130.4,0.063]
[1744643668135,7.6663,130.44,130.4,0.063]
[1744643668339,45.21572058,130.42,130.4,0.063]
[1744643668641,45.21572058,130.41,130.4,0.063]
[1744643669342,52.88382058,130.41,130.4,0.063]
[1744643669554,52.88332058,130.42,130.4,0.063]
[1744643669721,52.88282058,130.43,130.4,0.063]
[1744643669923,7.6664,130.44,130.4,0.063]
[1744643670143,82.9,130.48,130.42,45.21572058]
[1744643670335,61.62022058,130.47,130.42,45.21572058]
[1744643670649,16.4045,130.47,130.41,45.21572058]
[1744643670845,45.21572058,130.46,130.41,45.21572058]
[1744643671022,16.4045,130.47,130.41,45.21572058]
[1744643671231,61.62022058,130.47,130.42,45.21572058]
[1744643671430,8.74,130.47,130.44,45.21572058]
[1744643671635,7.6622,130.51,130.46,45.21572058]
[1744643671837,45.21572058,130.47,130.4,0.063]
[1744643672055,45.21572058,130.42,130.4,0.063]
[1744643672551,45.21572058,130.44,130.4,0.063]
[1744643672954,45.21572058,130.42,130.4,0.063]
[1744643673325,45.21572058,130.41,130.4,0.063]
[1744643673527,52.88382058,130.41,130.4,0.063]
[1744643673726,7.6681,130.41,130.4,0.063]
[1744643673951,52.88382058,130.41,130.4,0.063]
[1744643674148,0.28432314,130.4,130.31,1.5497]
[1744643674358,45.21572058,130.36,130.31,46.76542058]
[1744643674529,45.21572058,130.39,130.34,45.21572058]
[1744643674732,35.5784,130.41,130.36,45.21572058]
[1744643674733,80.79412058,130.41,130.36,45.21572058]
[1744643674931,80.79412058,130.41,130.31,9.2233]
[1744643674932,45.21572058,130.4,130.31,28.4083]
[1744643675145,45.21572058,130.4,130.35,45.21572058]
[1744643675448,61.62382058,130.41,130.36,45.21572058]
[1744643675655,90.5673,130.43,130.38,45.21572058]
[1744643675830,45.21572058,130.44,130.4,45.21572058]
[1744643676235,45.21572058,130.44,130.38,45.21572058]
[1744643676236,45.21572058,130.43,130.38,45.21572058]
[1744643676440,45.21572058,130.42,130.37,45.21572058]
[1744643676635,45.21572058,130.43,130.38,45.21572058]
[1744643676858,45.21572058,130.42,130.37,45.21572058]
[1744643677241,45.21572058,130.42,130.38,45.21572058]
[1744643677437,16.4058,130.45,130.41,45.21572058]
[1744643678258,8.74,130.45,130.41,45.21572058]
[1744643678765,247.68,130.49,130.44,45.21572058]
[1744643678933,45.21572058,130.48,130.39,26.8424]
[1744643679128,45.21572058,130.47,130.42,45.21572058]
[1744643679353,45.21572058,130.46,130.41,45.21572058]
[1744643679650,45.21572058,130.48,130.43,45.21572058]
[1744643679849,292.89572058,130.49,130.44,45.21572058]
[1744643680035,53.93572058,130.49,130.45,45.21572058]
[1744643680249,8.72,130.49,130.45,45.21572058]
[1744643680545,52.87732058,130.52,130.47,45.21572058]
[1744643680745,7.6616,130.52,130.48,45.21572058]
[1744643680945,45.21572058,130.52,130.47,45.21572058]
[1744643681756,61.59702058,130.53,130.48,45.21572058]
[1744643681957,45.21572058,130.5,130.43,7.6669]
[1744643682252,45.21572058,130.49,130.44,45.21572058]
[1744643682436,45.21572058,130.5,130.45,45.21572058]
[1744643682640,35.67606157,130.53,130.45,45.21572058]
[1744643682846,45.21572058,130.5,130.45,45.21572058]
[1744643683144,45.21572058,130.51,130.46,45.21572058]
[1744643683341,45.21572058,130.48,130.43,45.21572058]
[1744643683542,45.21572058,130.46,130.41,46.77222058]
[1744643683950,45.21572058,130.47,130.42,45.21572058]
[1744643684152,26.8228,130.49,130.42,45.21572058]
[1744643684456,45.21572058,130.46,130.41,54.44012058]
[1744643684659,52.87912058,130.49,130.44,45.21572058]
[1744643684860,45.21572058,130.48,130.43,45.21572058]
[1744643685155,45.21572058,130.45,130.41,1.5565]
[1744643685363,45.21572058,130.45,130.4,45.21572058]
[1744643685550,8.72,130.48,130.44,45.21572058]
[1744643685863,52.87872058,130.5,130.45,45.21572058]
[1744643686157,52.87872058,130.5,130.4,7.6687]
[1744643686334,45.21572058,130.46,130.4,7.6687]
[1744643686528,45.21572058,130.46,130.41,45.21572058]
[1744643686733,45.21572058,130.45,130.39,7.669]
[1744643686938,45.21572058,130.45,130.4,45.21572058]
[1744643687547,7.6645,130.47,130.41,45.21572058]
[1744643687762,45.21572058,130.46,130.41,45.21572058]
[1744643688459,7.6645,130.47,130.41,45.21572058]
[1744643688760,8.72,130.48,130.41,45.21572058]
[1744643688761,52.88112058,130.46,130.41,7.668]
[1744643689063,52.88112058,130.46,130.41,52.88372058]
[1744643689472,45.21572058,130.44,130.36,1.6689]
[1744643689646,7.6654,130.46,130.4,45.21572058]
[1744643689839,45.21572058,130.45,130.4,45.21572058]
[1744643690363,7.661,130.53,130.44,45.21572058]
[1744643690671,45.21572058,130.51,130.46,45.21572058]
[1744643690963,7.6628,130.5,130.46,45.21572058]
[1744643691165,83.18432314,130.54,130.46,45.21572058]
[1744643691166,7.661,130.53,130.46,52.88082058]
[1744643691382,52.87632058,130.54,130.49,45.21572058]
[1744643691571,7.6606,130.54,130.5,45.21572058]
[1744643691864,52.87632058,130.54,130.46,9.1905]
[1744643692064,52.87632058,130.54,130.49,45.21572058]
[1744643692254,8.72,130.55,130.5,45.21572058]
[1744643692452,53.93572058,130.55,130.5,45.21572058]
[1744643692875,61.59582058,130.55,130.5,45.21572058]
[1744643693057,16.3801,130.55,130.5,52.87832058]
[1744643693455,61.59582058,130.55,130.5,45.21572058]
[1744643693673,45.21572058,130.54,130.49,45.21572058]
[1744643693872,45.21572058,130.52,130.47,45.21572058]
[1744643694264,45.21572058,130.52,130.47,7.6644]
[1744643694575,118.4298,130.55,130.48,45.21572058]
[1744643694872,45.21572058,130.54,130.49,45.21572058]
[1744643695068,144.49582058,130.55,130.5,45.21572058]
[1744643695468,45.21572058,130.54,130.49,45.21572058]
[1744643695869,135.77582058,130.55,130.5,45.21572058]
[1744643696067,135.77582058,130.55,130.37,39.905]
[1744643696068,90.43144116,130.51,130.37,39.905]
[1744643696269,45.21572058,130.44,130.38,7.6698]
[1744643696451,45.21572058,130.46,130.41,45.21572058]
[1744643696655,6.4718,130.5,130.38,52.88552058]
[1744643696876,8.72,130.51,130.39,18.64964886]
[1744643697081,45.21572058,130.46,130.41,45.21572058]
[1744643697255,45.21572058,130.47,130.42,45.21572058]
[1744643697461,34.72,130.51,130.43,45.21572058]
[1744643697678,45.21572058,130.49,130.44,45.21572058]
[1744643698064,52.88022058,130.47,130.4,7.6682]
[1744643698263,45.21572058,130.46,130.41,45.21572058]
[1744643698579,7.6634,130.49,130.43,45.21572058]
[1744643698879,45.21572058,130.48,130.43,45.21572058]
[1744643699085,45.21572058,130.47,130.42,45.21572058]
[1744643699859,45.21572058,130.48,130.43,45.21572058]
[1744643700174,7.6651,130.46,130.42,45.21572058]
[1744643700381,7.6651,130.46,130.41,52.88382058]
[1744643700570,45.21572058,130.44,130.37,9.2229]
[1744643700884,45.21572058,130.44,130.39,45.21572058]
[1744643701083,45.21572058,130.44,130.37,9.2229]
[1744643701275,45.21572058,130.42,130.37,1.5527]
[1744643701477,45.21572058,130.4,130.36,0.063]
[1744643701678,45.21572058,130.39,130.36,0.063]
[1744643701864,82.9,130.45,130.38,45.21572058]
[1744643702064,90.5658,130.45,130.41,45.21572058]
[1744643702260,45.21572058,130.42,130.36,45.27872058]
[1744643702489,45.21572058,130.4,130.36,0.063]
[1744643702668,45.21572058,130.42,130.37,45.21572058]
[1744643703358,7.6658,130.45,130.37,45.21572058]
[1744643703580,45.21572058,130.42,130.37,45.21572058]
[1744643703784,45.21572058,130.41,130.36,45.27872058]
[1744643703960,45.21572058,130.37,130.36,0.063]
[1744643704287,52.88612058,130.37,130.36,0.063]
[1744643705782,26.0,130.34,130.26,1.6416]
[1744643705986,45.21572058,130.32,130.27,45.21572058]
[1744643706181,45.21572058,130.32,130.2,45.35788215]
[1744643706365,45.21572058,130.31,130.26,45.21572058]
[1744643706563,45.21572058,130.32,130.27,45.21572058]
[1744643706987,45.21572058,130.31,130.26,45.21572058]
[1744643707280,26.8528,130.34,130.21,7.6799]
[1744643707281,45.21572058,130.3,130.21,7.6799]
[1744643707959,26.8528,130.34,130.27,45.21572058]
[1744643707960,45.21572058,130.32,130.27,45.21572058]
[1744643708158,26.8528,130.34,130.28,45.21572058]
[1744643708373,45.21572058,130.29,130.24,1.5813]
[1744643708571,45.21572058,130.25,130.19,1.652]
[1744643708774,45.21572058,130.23,130.16,2.7430642]
[1744643708973,6.1128,130.28,130.16,10.4254642]
[1744643709181,45.21572058,130.25,130.21,45.21572058]
[1744643709385,45.21572058,130.24,130.16,2.7430642]
[1744643709579,45.21572058,130.24,130.19,45.21572058]
[1744643709782,45.21572058,130.25,130.2,45.21572058]
[1744643710268,45.21572058,130.23,130.16,2.7430642]
[1744643710463,52.89382058,130.24,130.19,45.21572058]
[1744643710663,52.89332058,130.25,130.16,10.4256642]
[1744643710872,7.6776,130.25,130.2,0.03467203]
[1744643711074,45.21572058,130.24,130.2,0.03467203]
[1744643711273,45.21572058,130.21,130.2,0.03467203]
[1744643711478,45.21572058,130.22,130.2,0.03467203]
[1744643711794,45.21572058,130.24,130.2,0.03467203]
[1744643711992,45.21572058,130.22,130.2,0.03467203]
[1744643712292,52.89562058,130.21,130.2,0.03467203]
[1744643712778,45.21572058,130.21,130.2,0.03467203]
[1744643712973,45.21572058,130.24,130.2,0.03467203]
[1744643713178,45.21572058,130.23,130.2,0.03467203]
[1744643713485,45.21572058,130.22,130.2,0.03467203]
[1744643713662,0.28432314,130.24,130.2,0.03467203]
[1744643713867,45.21572058,130.22,130.2,0.03467203]
[1744643714064,7.6779,130.25,130.2,0.03467203]
[1744643714278,52.89202058,130.27,130.22,45.21572058]
[1744643714480,45.21572058,130.24,130.19,45.21572058]
[1744643714793,45.21572058,130.24,130.16,10.4255642]
[1744643714987,45.21572058,130.23,130.18,45.21572058]
[1744643715290,45.21572058,130.22,130.16,2.7430642]
[1744643715492,45.21572058,130.18,130.16,2.7430642]
[1744643715664,0.14216157,130.25,130.17,45.21572058]
[1744643715868,45.21572058,130.21,130.16,2.7430642]
[1744643716093,45.21572058,130.2,130.16,2.7430642]
[1744643716690,0.14216157,130.21,130.16,2.7430642]
[1744643717000,45.21572058,130.18,130.16,2.7430642]
[1744643717177,45.21572058,130.17,130.16,2.7430642]
[1744643717996,64.29185415,130.17,130.16,2.7430642]
[1744643718172,7.6822,130.17,130.16,2.7430642]
[1744643718375,52.89792058,130.17,130.16,2.7430642]
[1744643718912,71.83189258,130.17,130.16,6.42e-05]
[1744643719197,18.933972,130.16,130.15,6.42e-05]
[1744643719363,64.14969258,130.16,130.15,6.42e-05]
[1744643719779,45.50004372,130.16,130.15,6.42e-05]
[1744643720167,53.18284372,130.16,130.15,6.42e-05]
[1744643720589,7.6828,130.16,130.15,6.42e-05]
[1744643720775,72.11681572,130.16,130.15,6.42e-05]
[1744643722589,45.21572058,130.11,130.1,0.063]
[1744643723088,45.21572058,130.13,130.1,0.063]
[1744643723292,7.6828,130.16,130.1,0.063]
[1744643723480,45.21572058,130.14,130.1,0.063]
[1744643723792,45.21572058,130.13,130.1,0.063]
[1744643723991,18.64964886,130.19,130.1,0.063]
[1744643723992,134.5,130.21,130.1,0.063]
[1744643724202,45.21572058,130.17,130.12,45.21572058]
[1744643724374,45.21572058,130.18,130.13,52.90032058]
[1744643724693,45.21572058,130.19,130.14,45.21572058]
[1744643725070,45.21572058,130.19,130.13,7.6846]
[1744643725483,45.21572058,130.19,130.14,45.21572058]
[1744643725792,16.4199,130.21,130.15,45.21572058]
[1744643725995,45.21572058,130.2,130.15,45.21572058]
[1744643726387,45.21572058,130.2,130.15,52.89892058]
[1744643726695,52.89622058,130.2,130.15,45.21572058]
[1744643727767,7.6781,130.24,130.17,45.21572058]
[1744643728075,7.6777,130.25,130.2,45.21572058]
[1744643728267,52.89392058,130.24,130.18,45.21572058]
[1744643728474,45.21572058,130.24,130.19,45.21572058]
[1744643728693,45.21572058,130.23,130.18,45.21572058]
[1744643729003,52.89402058,130.24,130.19,45.21572058]
[1744643729801,45.21572058,130.29,130.2,45.21572058]
[1744643730006,45.21572058,130.24,130.18,8.74]
[1744643730210,26.8621,130.3,130.21,45.21572058]
[1744643730375,7.6737,130.32,130.25,45.21572058]
[1744643730575,45.21572058,130.31,130.26,45.21572058]
[1744643730790,45.21572058,130.29,130.24,45.21572058]
[1744643731102,45.21572058,130.31,130.23,26.8755]
[1744643731305,45.21572058,130.28,130.23,7.6787]
[1744643731603,45.21572058,130.24,130.21,1.6514]
[1744643731899,0.28432314,130.28,130.21,1.6514]
[1744643731900,45.21572058,130.23,130.21,1.6514]
[1744643732197,45.21572058,130.24,130.21,1.6514]
[1744643732388,9.02432314,130.28,130.21,1.6514]
[1744643732701,45.21572058,130.29,130.24,45.21572058]
[1744643733001,45.21572058,130.31,130.26,45.21572058]
[1744643733175,45.21572058,130.3,130.25,45.21572058]
[1744643733498,6.43152314,130.35,130.25,45.21572058]
[1744643733499,7.6714,130.36,130.26,45.21572058]
[1744643733680,45.21572058,130.33,130.28,45.21572058]
[1744643734004,45.21572058,130.34,130.28,45.21572058]
[1744643734294,45.21572058,130.33,130.28,45.21572058]
[1744643734499,45.21572058,130.33,130.29,7.6751]
[1744643734705,53.95572058,130.38,130.3,45.21572058]
[1744643734997,45.21572058,130.33,130.28,52.89132058]
[1744643735199,7.6704,130.37,130.29,45.21572058]
[1744643735385,45.21572058,130.37,130.32,45.21572058]
[1744643735587,52.88572058,130.38,130.33,45.21572058]
[1744643735893,16.438,130.42,130.35,45.21572058]
[1744643736089,7.698,130.42,130.36,45.21572058]
[1744643736307,7.698,130.42,130.37,45.21572058]
[1744643736481,45.21572058,130.4,130.35,7.671]
[1744643736675,45.21572058,130.38,130.33,45.21572058]
[1744643736883,45.21572058,130.37,130.32,45.21572058]
[1744643737090,45.21572058,130.38,130.33,45.21572058]
[1744643737292,45.21572058,130.38,130.3,1.5176]
[1744643737293,45.21572058,130.34,130.3,1.5176]
[1744643737573,45.21572058,130.38,130.3,1.5176]
[1744643737574,45.21572058,130.33,130.3,1.5176]
[1744643738079,45.21572058,130.38,130.3,54.40782058]